bitfinex-derivatives/quotes_ETHF0:USTF0_20260120
["timestamp","ask_amount","ask_price","bid_price","bid_amount"]
[1768874691482,0.00337133,3191.2,3190.3,40.8]
[1768874692078,1.91799858,3190.7,3190.3,40.8]
[1768874692278,1.91799858,3190.7,3189.3,0.64720792]
[1768874692279,0.60615984,3191.0,3189.7,3.951]
[1768874692577,1.31183874,3191.1,3189.8,1.31183874]
[1768874692785,1.31183874,3190.9,3189.8,40.8]
[1768874692985,0.60615984,3191.1,3189.8,40.8]
[1768874694488,1.72754588,3191.1,3189.8,44.755]
[1768874695086,0.60615984,3191.1,3189.8,44.755]
[1768874696786,0.60615984,3191.1,3189.9,3.961]
[1768874698984,0.67767418,3190.9,3189.8,3.965]
[1768874699890,0.67767418,3190.9,3189.4,40.8]
[1768874700082,0.67767418,3190.9,3189.6,3.966]
[1768874700385,0.83447418,3190.7,3189.4,44.766]
[1768874700590,0.83448418,3190.6,3189.0,0.79918577]
[1768874700794,0.8283475,3190.5,3189.4,3.966]
[1768874700982,0.8283475,3190.4,3189.4,3.966]
[1768874701290,0.8283475,3190.4,3189.0,0.79918577]
[1768874701291,0.67767418,3190.2,3189.0,0.79918577]
[1768874701493,0.8283475,3190.1,3189.0,0.79918577]
[1768874701689,0.8283475,3190.0,3189.0,0.79918577]
[1768874701889,0.67767418,3190.2,3189.0,0.79918577]
[1768874702088,0.82799635,3190.1,3189.0,0.79918577]
[1768874702391,0.82799635,3190.0,3189.0,0.79918577]
[1768874702689,0.67767418,3190.2,3189.0,0.79918577]
[1768874702889,0.67767418,3190.0,3189.0,0.79918577]
[1768874703090,0.82786349,3189.9,3189.0,0.79918577]
[1768874703388,0.67767418,3190.0,3189.0,0.79918577]
[1768874703578,0.82770324,3189.9,3189.0,0.79918577]
[1768874703890,0.67767418,3190.0,3189.0,0.79918577]
[1768874704089,0.82768523,3189.9,3189.0,0.79918577]
[1768874704292,0.67767418,3190.0,3189.0,0.79918577]
[1768874704491,0.82753216,3189.9,3189.0,0.79918577]
[1768874704789,0.67767418,3189.7,3188.7,0.00278905]
[1768874704982,0.82748879,3189.6,3188.7,0.00278905]
[1768874705183,0.67767418,3189.7,3188.7,0.00278905]
[1768874705796,0.82700368,3189.6,3188.7,0.00278905]
[1768874706093,0.67767418,3189.7,3188.7,0.00278905]
[1768874706788,0.83454418,3189.3,3188.1,40.8]
[1768874706989,0.67767418,3189.1,3187.2,0.63337777]
[1768874707298,0.98335737,3189.2,3187.6,3.973]
[1768874707299,1.50415155,3189.0,3187.6,3.973]
[1768874707498,0.67767418,3189.0,3187.6,3.973]
[1768874707691,0.67767418,3189.0,3187.6,3.9763584]
[1768874708788,0.67767418,3189.0,3187.6,0.0033584]
[1768874708984,0.83456418,3189.0,3187.6,0.0033584]
[1768874709290,0.67767418,3188.8,3187.6,0.0033584]
[1768874709496,0.6815326,3188.8,3187.6,0.0033584]
[1768874715089,0.00385842,3188.8,3187.6,0.0033584]
[1768874715289,0.00385842,3188.8,3187.6,0.63673617]
[1768874715592,0.83453418,3189.6,3187.6,0.63673617]
[1768874716196,0.15686,3189.5,3187.6,0.63673617]
[1768874716495,0.67767418,3189.2,3187.7,3.973]
[1768874716889,0.15687,3189.3,3187.7,4.60637777]
[1768874717592,0.15687,3189.3,3187.8,0.63337777]
[1768874718298,0.00240955,3189.5,3187.8,0.63337777]
[1768874718997,0.00240955,3189.5,3187.8,0.79031777]
[1768874719995,0.00240955,3189.5,3188.0,0.63337777]
[1768874721995,0.68008373,3189.5,3187.9,40.8]
[1768874722198,0.68008373,3189.5,3188.1,3.981]
[1768874723602,0.68008373,3189.5,3188.2,3.983]
[1768874723895,0.68008373,3189.5,3188.3,3.983]
[1768874725094,0.68008373,3189.5,3188.3,3.984]
[1768874725396,0.68008373,3189.5,3188.3,3.985]
[1768874725892,0.68008373,3189.5,3187.9,40.8]
[1768874726093,0.68008373,3189.5,3188.0,3.985]
[1768874727800,0.00240955,3189.5,3188.1,0.72473011]
[1768874731704,0.00240955,3189.5,3188.1,0.88166011]
[1768874733808,0.00240955,3189.5,3188.2,3.138]
[1768874735806,0.15683,3190.1,3188.3,0.72473011]
[1768874736008,0.82255773,3190.0,3188.3,0.72473011]
[1768874736207,0.82255773,3189.9,3188.3,0.72473011]
[1768874736410,0.8681088,3190.1,3188.3,0.72473011]
[1768874736709,0.82253237,3190.0,3188.3,0.72473011]
[1768874736910,0.82253237,3189.9,3188.3,0.72473011]
[1768874737113,0.00322982,3190.0,3188.3,0.72473011]
[1768874737304,0.82253272,3189.9,3188.4,4.001]
[1768874737603,0.71450862,3190.0,3188.4,4.001]
[1768874737908,0.82253924,3189.9,3188.5,4.002]
[1768874738111,0.71450862,3190.0,3188.5,4.002]
[1768874738310,0.82253443,3189.9,3188.5,4.002]
[1768874738510,0.71450862,3190.0,3188.5,4.002]
[1768874738711,0.8225517,3189.9,3188.5,4.002]
[1768874738904,0.71450862,3190.0,3188.5,4.002]
[1768874739108,0.82385274,3189.9,3188.5,4.002]
[1768874739300,0.71450862,3190.0,3188.5,4.002]
[1768874739503,0.82395826,3189.9,3188.5,4.002]
[1768874739708,0.71450862,3190.0,3188.5,4.002]
[1768874740007,0.82395828,3189.9,3188.5,4.002]
[1768874740206,0.71450862,3190.0,3188.5,4.002]
[1768874740407,1.53527216,3189.9,3188.3,0.72473011]
[1768874740609,0.82399336,3189.8,3188.4,4.004]
[1768874741015,0.82399336,3189.8,3188.3,0.72473011]
[1768874741314,0.82399336,3189.8,3188.4,4.004]
[1768874741613,0.82399336,3189.8,3188.3,0.72473011]
[1768874741812,0.82399336,3189.8,3188.1,0.15693]
[1768874741813,0.73325122,3189.7,3188.1,0.15693]
[1768874742015,0.73325122,3189.7,3188.4,4.005]
[1768874743909,0.73325122,3189.7,3188.1,0.15693]
[1768874744309,0.73325122,3189.7,3188.2,4.008]
[1768874744310,0.82539791,3189.6,3188.2,4.008]
[1768874744509,0.73325122,3189.6,3188.2,4.008]
[1768874745418,1.55899065,3189.5,3188.1,0.15693]
[1768874745609,0.73325122,3189.5,3188.2,4.011]
[1768874746009,0.8256929,3189.4,3188.3,4.011]
[1768874746209,0.73325122,3189.5,3188.4,4.012]
[1768874746413,0.73325122,3189.3,3187.9,40.8]
[1768874746611,1.55915153,3189.2,3188.0,4.012]
[1768874746814,0.73325122,3189.2,3188.0,4.012]
[1768874747424,0.82589423,3189.1,3188.0,4.012]
[1768874747621,0.73325122,3189.2,3188.0,4.012]
[1768874747823,0.82608709,3189.1,3188.0,4.012]
[1768874748022,1.12138604,3189.5,3188.0,4.012]
[1768874748318,0.33639121,3189.4,3188.0,4.012]
[1768874748519,1.16247818,3189.3,3188.1,4.017]
[1768874748724,0.82608697,3189.2,3188.1,4.017]
[1768874749024,0.82608697,3189.1,3188.1,4.017]
[1768874749323,1.12138604,3189.5,3188.1,4.017]
[1768874749518,0.3337338,3189.4,3188.1,4.017]
[1768874749826,0.82603355,3189.3,3188.1,4.017]
[1768874750024,0.82603355,3189.3,3187.6,0.0033584]
[1768874750025,0.89014122,3188.9,3187.6,0.0033584]
[1768874750222,1.55928477,3188.8,3187.6,0.0033584]
[1768874750524,0.82603355,3188.7,3187.6,0.0033584]
[1768874750822,0.82532562,3188.6,3187.6,0.0033584]
[1768874751020,0.89015122,3188.8,3187.6,40.8033584]
[1768874751220,0.73325122,3188.6,3187.6,40.8033584]
[1768874751822,0.73325122,3188.6,3187.6,0.0033584]
[1768874761737,0.76708999,3188.0,3186.6,3.568]
[1768874762035,0.76708999,3188.0,3186.7,40.8]
[1768874762435,0.92400999,3188.4,3186.7,40.8]
[1768874762728,0.92400999,3188.4,3186.7,44.83328689]
[1768874763341,0.76708999,3188.1,3186.7,40.80228689]
[1768874763637,0.76708999,3187.7,3186.7,0.00228689]
[1768874763837,0.76970284,3187.7,3186.7,0.00228689]
[1768874766840,0.76708999,3187.4,3186.1,40.8]
[1768874767634,0.76708999,3187.4,3185.2,2.77629062]
[1768874767833,0.92409999,3186.5,3185.2,0.00344627]
[1768874768433,0.76708999,3186.5,3185.2,0.00344627]
[1768874769743,0.15699,3187.0,3185.2,0.00344627]
[1768874769744,0.76708999,3186.9,3185.2,0.00344627]
[1768874770134,0.76708999,3186.9,3185.3,4.8358948]
[1768874770335,0.76708999,3187.3,3185.4,0.7988948]
[1768874771641,0.76708999,3186.9,3185.2,0.00344627]
[1768874771942,0.76708999,3186.7,3185.2,0.00344627]
[1768874773041,0.76708999,3186.5,3185.2,0.00344627]
[1768874773446,0.92409999,3186.5,3185.2,0.00344627]
[1768874775643,0.76708999,3186.5,3185.2,0.00344627]
[1768874775846,0.76708999,3187.1,3185.2,0.80234107]
[1768874776751,0.76708999,3187.1,3185.3,4.8398948]
[1768874776950,0.76708999,3187.1,3185.4,0.7988948]
[1768874777442,0.76708999,3187.1,3185.5,40.8]
[1768874778147,0.15698,3187.2,3185.6,0.7988948]
[1768874778346,0.76708999,3187.5,3185.6,0.7988948]
[1768874778750,0.00261285,3187.7,3185.6,0.7988948]
[1768874778950,0.00261285,3187.7,3185.8,0.7988948]
[1768874779145,0.76970284,3187.7,3185.9,4.043]
[1768874779749,0.76970284,3187.7,3186.0,0.7988948]
[1768874780150,0.00261285,3187.7,3186.0,0.7988948]
[1768874780354,0.00261285,3187.7,3186.0,0.9559248]
[1768874780756,0.00261285,3187.7,3186.1,0.15703]
[1768874780950,0.00261285,3187.7,3186.5,0.7988948]
[1768874781254,0.00261285,3187.7,3186.6,4.043]
[1768874782958,0.00261285,3187.7,3186.7,44.841]
[1768874783851,0.00261285,3187.7,3186.7,40.8]
[1768874784057,0.79465781,3187.7,3186.7,40.8]
[1768874784950,0.79465781,3187.7,3186.4,4.043]
[1768874785451,0.79465781,3187.7,3186.5,40.8]
[1768874785646,0.00261285,3187.7,3186.5,40.8]
[1768874785851,0.00261285,3187.7,3186.5,41.56684119]
[1768874786852,0.00261285,3187.7,3186.5,40.8]
[1768874787156,0.00261285,3187.7,3186.6,4.049]
[1768874787554,0.00261285,3187.7,3186.6,4.05]
[1768874793152,0.00261285,3187.7,3186.6,4.81684119]
[1768874793959,0.00261285,3187.7,3186.7,0.76684119]
[1768874794162,0.15693,3188.2,3186.7,0.76684119]
[1768874794362,0.79204496,3188.4,3186.7,0.76684119]
[1768874794562,1.27828604,3188.8,3186.7,0.76684119]
[1768874794762,1.27828604,3188.8,3186.7,0.92384119]
[1768874794763,0.82357337,3188.7,3186.7,0.92384119]
[1768874794959,0.94894496,3188.8,3186.7,0.92384119]
[1768874795161,0.79204496,3188.6,3186.8,4.069]
[1768874795561,0.79204496,3188.6,3186.8,4.83584119]
[1768874795764,0.79204496,3188.6,3186.9,0.76684119]
[1768874795968,0.79204496,3188.6,3187.0,4.07]
[1768874796857,0.15928096,3188.8,3187.1,0.76684119]
[1768874797563,0.00238096,3188.8,3187.1,0.92382119]
[1768874797766,0.00238096,3188.8,3187.5,0.76684119]
[1768874797963,0.00238096,3188.8,3187.6,4.83784119]
[1768874798166,0.00238096,3188.8,3187.7,40.8]
[1768874799861,0.15687,3189.4,3187.7,41.56684119]
[1768874800259,1.913431,3190.4,3188.1,0.76684119]
[1768874800571,13.51265459,3193.1,3188.1,0.76684119]
[1768874800572,0.79204496,3190.2,3188.3,0.76684119]
[1768874800760,1.61742684,3190.1,3188.3,0.76684119]
[1768874800956,0.79204496,3190.1,3188.3,0.76684119]
[1768874802765,0.79204496,3190.1,3188.4,4.072]
[1768874803062,0.79204496,3190.1,3188.5,4.072]
[1768874803769,0.79204496,3190.1,3188.6,40.8]
[1768874805366,0.15928059,3190.2,3188.6,41.63073582]
[1768874806862,0.92352907,3190.2,3188.6,40.8]
[1768874807172,0.92352907,3190.2,3188.7,4.077]
[1768874808678,0.92352907,3190.2,3188.8,4.081]
[1768874809973,0.92108848,3190.0,3188.6,40.8]
[1768874810167,0.92108848,3190.0,3188.7,4.082]
[1768874811864,0.92108848,3190.0,3188.8,4.084]
[1768874812070,0.76424848,3189.6,3187.8,0.15694]
[1768874812268,0.76424848,3189.6,3187.9,4.084]
[1768874812467,0.76424848,3189.6,3187.8,0.15694]
[1768874812468,0.76424848,3189.6,3188.0,40.8]
[1768874812674,0.76424848,3189.6,3188.1,4.084]
[1768874812868,0.76424848,3189.6,3188.0,40.8]
[1768874813101,0.92110848,3189.6,3188.1,4.084]
[1768874814078,0.92110848,3189.6,3188.1,4.086]
[1768874815483,0.92110848,3189.6,3188.1,4.089]
[1768874815680,0.92110848,3189.6,3187.5,0.00301446]
[1768874815881,0.83784553,3189.4,3187.6,40.8]
[1768874816081,0.83784553,3189.4,3187.7,2.459]
[1768874818381,0.83784553,3189.4,3187.7,3.24812253]
[1768874818568,0.15686,3189.6,3187.8,0.78912253]
[1768874818768,0.82594873,3189.5,3187.8,0.78912253]
[1768874818973,0.15686,3189.6,3187.8,0.78912253]
[1768874819169,0.82595594,3189.5,3187.8,0.78912253]
[1768874819371,0.82604698,3189.4,3187.8,0.78912253]
[1768874819576,0.15686,3189.6,3187.8,0.78912253]
[1768874819775,0.82619986,3189.5,3187.8,0.78912253]
[1768874820087,0.82619986,3189.4,3187.8,0.78912253]
[1768874820287,0.99470553,3189.6,3187.8,0.78912253]
[1768874820483,0.82652332,3189.5,3187.8,0.78912253]
[1768874820689,0.82652332,3189.4,3187.8,0.78912253]
[1768874820988,0.99470553,3189.6,3187.8,0.78912253]
[1768874821187,0.82661222,3189.5,3187.8,0.78912253]
[1768874821377,0.8268427,3189.4,3187.9,40.8]
[1768874821688,0.99470553,3189.6,3187.9,41.58912253]
[1768874821877,0.82675769,3189.5,3187.9,41.58912253]
[1768874822076,0.99470553,3189.6,3187.9,41.58912253]
[1768874822381,0.83784553,3189.4,3187.9,40.8]
[1768874822584,0.83784553,3189.4,3188.0,4.101]
[1768874822776,0.83784553,3189.2,3188.0,4.101]
[1768874823585,0.83784553,3189.2,3188.1,4.102]
[1768874824084,0.83784553,3189.2,3188.1,4.103]
[1768874824588,0.99470553,3189.5,3188.1,4.103]
[1768874824787,0.82789389,3189.4,3188.1,4.103]
[1768874825080,0.82789389,3189.3,3188.1,4.103]
[1768874825384,0.82812825,3189.2,3188.1,4.103]
[1768874825580,0.99470553,3189.5,3188.1,4.103]
[1768874825774,0.8281248,3189.4,3188.1,4.103]
[1768874825983,0.8281248,3189.3,3188.1,4.103]
[1768874826283,0.8281248,3189.2,3188.1,4.103]
[1768874826485,0.99470553,3189.5,3188.1,4.103]
[1768874826686,1.18249851,3189.4,3188.1,4.103]
[1768874826888,0.82848976,3189.3,3188.1,4.103]
[1768874827087,0.82848976,3189.2,3188.1,4.103]
[1768874827387,0.82886981,3189.1,3187.9,40.8]
[1768874827590,0.83784553,3189.4,3188.0,4.106]
[1768874827786,1.66672343,3189.3,3188.0,4.106]
[1768874827988,0.8288779,3189.2,3188.0,4.106]
[1768874828184,0.8288779,3189.1,3188.0,4.106]
[1768874828489,0.83784553,3189.3,3188.0,4.106]
[1768874828684,0.82894745,3189.2,3188.0,4.106]
[1768874828988,0.82894745,3189.1,3188.0,4.106]
[1768874829178,0.83784553,3189.3,3187.5,0.15997446]
[1768874829385,0.8283413,3189.2,3187.6,3.453]
[1768874829584,0.8283413,3189.1,3187.6,3.453]
[1768874829788,0.83784553,3189.3,3187.6,3.453]
[1768874829789,0.83784553,3189.3,3187.7,40.8]
[1768874829988,0.82832511,3189.2,3187.7,40.8]
[1768874830287,0.82832511,3189.1,3187.7,40.8]
[1768874830489,0.83784553,3189.3,3187.7,40.8]
[1768874830689,0.82815245,3189.2,3187.7,41.58912253]
[1768874830890,0.15686,3189.5,3187.8,0.78912253]
[1768874831192,1.17961652,3189.4,3187.8,0.78912253]
[1768874831488,0.8281349,3189.3,3187.8,0.78912253]
[1768874831694,0.8281349,3189.2,3187.8,0.78912253]
[1768874831991,0.15686,3189.5,3187.8,0.78912253]
[1768874832187,1.17962159,3189.4,3187.8,0.78912253]
[1768874832381,0.82813803,3189.3,3187.8,0.78912253]
[1768874832577,0.15686,3189.5,3187.8,0.78912253]
[1768874832578,0.82813803,3189.2,3187.8,0.78912253]
[1768874832777,0.15686,3189.5,3187.8,0.78912253]
[1768874832982,1.17657039,3189.4,3187.8,0.78912253]
[1768874833192,0.82784168,3189.3,3187.8,0.78912253]
[1768874833389,0.82784168,3189.2,3187.8,0.78912253]
[1768874833592,0.99470553,3189.5,3187.8,0.78912253]
[1768874833894,1.17664343,3189.4,3187.8,0.78912253]
[1768874834081,0.82789148,3189.3,3187.8,0.78912253]
[1768874834386,0.82789148,3189.2,3187.8,0.78912253]
[1768874834584,0.99470553,3189.5,3187.8,0.78912253]
[1768874834782,1.17683748,3189.4,3187.8,0.78912253]
[1768874834981,0.82802752,3189.3,3187.8,0.78912253]
[1768874835189,0.82802752,3189.2,3187.9,40.8]
[1768874835389,0.99470553,3189.5,3187.9,40.8]
[1768874835591,1.17708285,3189.4,3187.9,40.8]
[1768874835788,0.99470553,3189.5,3187.9,40.8]
[1768874835789,0.82821386,3189.3,3187.9,40.8]
[1768874835983,0.82821386,3189.2,3187.9,40.8]
[1768874836185,0.99470553,3189.5,3187.9,40.8]
[1768874836384,2.01515666,3189.4,3187.9,40.8]
[1768874836578,0.82837356,3189.3,3187.9,40.8]
[1768874838591,0.82837356,3189.3,3188.0,4.123]
[1768874838983,0.82837356,3189.3,3188.2,1.31258356]
[1768874839293,0.82837356,3189.3,3188.6,1.31258356]
[1768874839491,2.52887358,3189.8,3188.8,1.31258356]
[1768874839492,0.83784553,3189.8,3188.8,1.31258356]
[1768874839687,1.1779455,3189.7,3188.8,1.31258356]
[1768874839993,0.83113446,3189.6,3188.8,1.31258356]
[1768874840194,0.83113446,3189.5,3188.6,4.124]
[1768874840380,0.83784553,3189.8,3188.6,4.124]
[1768874840584,1.17816423,3189.7,3188.6,5.43658356]
[1768874840785,0.83128917,3189.6,3188.6,5.43658356]
[1768874840984,0.83128917,3189.5,3188.6,4.124]
[1768874841185,0.83784553,3189.8,3188.6,4.124]
[1768874841385,1.17802499,3189.7,3188.6,4.124]
[1768874841587,0.83119034,3189.6,3188.6,4.124]
[1768874841789,0.83119034,3189.5,3188.6,4.124]
[1768874841982,1.12138604,3190.0,3188.6,4.124]
[1768874842188,0.34434419,3189.9,3188.6,4.124]
[1768874842491,0.83784553,3189.7,3188.1,3.29493]
[1768874842691,0.83784553,3189.5,3188.2,4.125]
[1768874842898,0.8313378,3189.4,3188.2,4.125]
[1768874843198,0.83784553,3189.5,3188.2,4.125]
[1768874843389,0.83110646,3189.4,3188.2,4.125]
[1768874843584,0.83784553,3189.5,3188.2,4.125]
[1768874843988,0.83108577,3189.4,3188.2,4.125]
[1768874844191,0.83784553,3189.5,3188.2,4.125]
[1768874846297,0.81897502,3189.9,3188.3,0.81108063]
[1768874846600,0.8312267,3189.8,3188.3,0.81108063]
[1768874846798,0.8312267,3189.7,3188.3,0.81108063]
[1768874846997,0.15684,3190.0,3188.3,0.81108063]
[1768874847302,1.17162093,3189.9,3188.3,0.81108063]
[1768874847487,0.82994759,3189.8,3188.3,0.81108063]
[1768874847690,0.82994759,3189.7,3188.3,0.81108063]
[1768874847892,1.94281165,3190.2,3188.3,0.81108063]
[1768874848095,1.17157569,3190.1,3188.3,0.81108063]
[1768874848293,1.17157569,3190.0,3188.3,0.81108063]
[1768874848497,1.17157569,3189.9,3188.3,0.81108063]
[1768874848698,0.82994814,3189.8,3188.3,0.81108063]
[1768874848898,0.82994814,3189.7,3188.3,0.81108063]
[1768874849099,1.94281165,3190.2,3188.3,0.81108063]
[1768874849299,1.17135314,3190.1,3188.3,0.81108063]
[1768874849502,1.17135314,3190.0,3188.3,0.81108063]
[1768874849800,1.17135314,3189.9,3188.3,0.81108063]
[1768874850004,0.82978956,3189.8,3188.3,0.81108063]
[1768874850197,0.82978956,3189.7,3188.3,0.81108063]
[1768874850496,1.94281165,3190.2,3188.3,0.81108063]
[1768874850696,1.17207359,3190.1,3188.3,0.81108063]
[1768874850890,1.17207359,3190.0,3188.3,0.81108063]
[1768874851096,1.17207359,3189.9,3188.3,0.81108063]
[1768874851292,0.8305295,3189.8,3188.3,0.81108063]
[1768874851493,0.8305295,3189.7,3188.3,0.81108063]
[1768874851696,1.94281165,3190.2,3188.3,0.81108063]
[1768874851898,1.98833788,3190.1,3188.3,0.81108063]
[1768874852099,1.16936286,3190.0,3188.3,0.81108063]
[1768874852292,0.83047528,3189.9,3188.3,0.81108063]
[1768874852494,0.83047528,3189.8,3188.3,0.81108063]
[1768874852694,0.83047528,3189.7,3188.4,4.141]
[1768874852898,0.81897502,3189.9,3188.4,4.141]
[1768874853097,0.83057013,3189.8,3188.4,4.141]
[1768874853297,0.83057013,3189.7,3188.5,4.142]
[1768874853501,0.81897502,3189.9,3188.5,4.142]
[1768874853702,0.83055412,3189.8,3188.5,4.142]
[1768874853997,0.83055412,3189.7,3188.5,4.142]
[1768874854198,0.81897502,3189.9,3188.5,4.142]
[1768874854400,0.83063056,3189.8,3188.5,4.142]
[1768874854701,0.83063056,3189.7,3188.5,4.142]
[1768874855002,0.15928059,3190.2,3188.6,0.81108063]
[1768874855203,1.16951541,3190.1,3188.6,0.81108063]
[1768874855394,1.16950317,3190.0,3188.6,0.81108063]
[1768874855596,0.83057198,3189.9,3188.6,0.81108063]
[1768874855795,0.83057198,3189.8,3188.6,0.81108063]
[1768874855995,0.00245059,3190.2,3188.6,0.81108063]
[1768874856198,0.00245059,3190.2,3188.8,0.96797063]
[1768874856506,0.00245059,3190.2,3188.9,40.8]
[1768874858201,0.00245059,3190.2,3189.0,4.146]
[1768874858202,0.82142561,3190.2,3189.0,4.146]
[1768874858701,0.82142561,3190.2,3188.9,40.8]
[1768874858902,0.82142561,3190.2,3189.0,4.147]
[1768874859108,0.82142561,3190.2,3188.9,40.8]
[1768874859301,0.82142561,3190.2,3189.0,4.148]
[1768874861894,0.82142561,3190.2,3187.9,0.80049261]
[1768874862094,0.96810268,3189.6,3187.6,3.138]
[1768874862296,1.12138604,3189.9,3187.7,2.975]
[1768874862297,0.81124268,3189.4,3187.7,2.975]
[1768874862506,0.81124268,3189.2,3187.7,2.975]
[1768874862707,0.83163242,3189.1,3187.7,2.975]
[1768874863001,0.81124268,3189.2,3187.7,2.975]
[1768874863204,0.83139961,3189.1,3187.7,2.975]
[1768874863403,0.15686,3189.5,3187.7,3.77549261]
[1768874863605,0.83133836,3189.4,3187.7,3.77549261]
[1768874863806,0.83133836,3189.3,3187.7,3.77549261]
[1768874863994,0.83133836,3189.2,3187.7,3.77549261]
[1768874864201,0.81124268,3189.4,3187.7,3.77549261]
[1768874864401,0.81124268,3189.2,3187.5,0.00301446]
[1768874864603,0.81124268,3189.2,3187.6,4.15]
[1768874865104,0.81124268,3189.2,3187.5,0.00301446]
[1768874865303,0.81124268,3189.0,3187.6,4.149]
[1768874865510,1.64246811,3188.9,3187.6,4.149]
[1768874865710,0.81124268,3188.9,3187.6,4.149]
[1768874866111,0.81124268,3188.9,3187.5,0.00301446]
[1768874866311,0.81124268,3188.9,3187.5,4.15101446]
[1768874867611,1.93262872,3189.3,3187.5,4.15101446]
[1768874867805,0.83070202,3189.2,3187.5,4.15101446]
[1768874868005,0.83070202,3189.1,3187.6,40.8]
[1768874868209,0.83070202,3189.0,3187.6,40.8]
[1768874868513,0.81124268,3189.3,3187.6,40.8]
[1768874868709,1.6417463,3189.2,3187.6,40.8]
[1768874868904,1.6417463,3189.1,3187.6,40.8]
[1768874869106,1.6417463,3189.0,3187.6,40.8]
[1768874869306,0.81124268,3189.0,3187.6,40.8]
[1768874870018,0.83023382,3188.9,3187.6,40.8]
[1768874870220,0.81124268,3189.0,3187.6,40.8]
[1768874872021,1.93262872,3189.4,3187.6,41.60049261]
[1768874872312,0.82979923,3189.3,3187.7,0.80049261]
[1768874872516,0.82979923,3189.2,3187.7,0.80049261]
[1768874872819,0.81124268,3189.4,3187.7,0.80049261]
[1768874873014,0.82980518,3189.3,3187.7,0.80049261]
[1768874873238,0.82980518,3189.2,3187.7,0.80049261]
[1768874873438,0.81124268,3189.4,3187.8,41.58656567]
[1768874873739,0.82975055,3189.3,3187.8,41.58656567]
[1768874873937,0.82975055,3189.2,3187.8,41.58656567]
[1768874874131,0.81124268,3189.4,3187.8,41.58656567]
[1768874874324,0.83470622,3189.3,3187.8,41.58656567]
[1768874874539,0.83470622,3189.2,3187.8,41.58656567]
[1768874874734,0.78671025,3189.0,3187.8,40.8]
[1768874877330,0.15687,3189.4,3187.8,40.8]
[1768874877531,0.83449563,3189.3,3187.8,40.8]
[1768874877732,0.83449563,3189.2,3187.8,40.8]
[1768874878040,0.15687,3189.4,3187.8,40.8]
[1768874878333,1.62121189,3189.3,3187.9,4.164]
[1768874878538,0.83450164,3189.2,3187.9,4.164]
[1768874878938,0.83450164,3189.2,3188.0,4.166]
[1768874882346,1.62121189,3189.2,3187.8,40.8]
[1768874882547,1.62121189,3189.1,3187.9,4.168]
[1768874882736,0.78671025,3189.0,3187.9,4.168]
[1768874884333,0.78671025,3189.0,3187.6,40.8]
[1768874884547,0.78671025,3189.0,3187.7,4.17]
[1768874885040,0.78671025,3189.0,3187.6,40.8]
[1768874886446,0.15687,3189.3,3187.6,40.8]
[1768874886640,0.83507745,3189.2,3187.6,41.58656567]
[1768874886839,0.83507745,3189.1,3187.6,41.58656567]
[1768874887146,0.15687,3189.3,3187.6,41.58656567]
[1768874887147,0.83507745,3189.0,3187.6,41.58656567]
[1768874887336,0.94358025,3189.3,3187.6,41.58656567]
[1768874887539,0.94359025,3189.1,3187.6,40.8]
[1768874887737,0.78671025,3188.9,3187.6,40.8]
[1768874888043,0.78671025,3188.9,3187.6,44.975]
[1768874888242,0.8357905,3188.8,3187.6,44.975]
[1768874888446,0.83586761,3188.7,3187.6,44.975]
[1768874888752,0.83592255,3188.6,3187.5,0.00301446]
[1768874888943,0.83592255,3188.5,3187.5,0.00301446]
[1768874889136,0.94361025,3188.7,3187.5,0.00301446]
[1768874889340,1.62379588,3188.6,3187.5,0.00301446]
[1768874889537,1.62379588,3188.6,3186.5,3.29501]
[1768874889538,0.78671025,3188.2,3186.4,0.78656567]
[1768874889748,0.78671025,3188.2,3186.0,0.78656567]
[1768874889749,0.78671025,3188.0,3186.0,0.78656567]
[1768874889941,1.62379588,3187.9,3186.1,4.177]
[1768874890141,0.83708563,3187.8,3186.2,40.8]
[1768874890443,0.83708563,3187.7,3186.2,40.8]
[1768874890654,1.62379588,3187.6,3186.3,4.177]
[1768874890835,0.78671025,3187.6,3186.3,4.177]
[1768874891039,0.78671025,3187.6,3186.2,40.80236367]
[1768874891257,0.78671025,3187.4,3186.2,0.00236367]
[1768874891551,0.78671025,3187.4,3185.7,0.80077655]
[1768874891552,0.78671025,3187.1,3185.7,0.80077655]
[1768874891847,0.78671025,3186.9,3185.7,0.80077655]
[1768874892051,0.78671025,3186.7,3185.0,4.177]
[1768874892449,0.78671025,3186.7,3185.1,40.8]
[1768874893550,0.78671025,3186.7,3185.1,44.978]
[1768874895949,0.15699,3187.0,3185.2,0.78656567]
[1768874896155,0.94370025,3187.0,3185.2,0.78656567]
[1768874896350,0.94370025,3187.0,3185.3,4.185]
[1768874896555,0.78671025,3186.8,3185.3,4.185]
[1768874897347,0.15699,3187.0,3185.3,4.97156567]
[1768874897549,0.15699,3187.0,3185.4,0.78656567]
[1768874899155,0.15699,3187.0,3185.5,4.191]
[1768874900346,0.15699,3187.0,3185.6,0.78656567]
[1768874900750,0.94367025,3187.6,3185.6,0.78656567]
[1768874900955,1.77391082,3187.5,3185.6,0.78656567]
[1768874901148,0.94368025,3187.3,3185.5,4.191]
[1768874902254,0.94368025,3187.3,3185.6,4.194]
[1768874902462,0.94369025,3187.2,3185.2,0.78656567]
[1768874902651,0.15698,3187.1,3185.4,0.78656567]
[1768874904059,0.78671025,3187.6,3185.4,0.94362567]
[1768874905966,0.77752397,3187.4,3185.4,0.94362567]
[1768874906155,0.93449397,3187.4,3185.4,0.94362567]
[1768874908068,0.15697,3187.4,3185.6,0.7830517]
[1768874909955,0.0026081,3187.7,3185.6,0.9401017]
[1768874911068,0.0026081,3187.7,3185.8,0.7830517]
[1768874911465,0.0026081,3187.7,3185.7,0.15705]
[1768874911466,0.0026081,3187.7,3186.0,0.7830517]
[1768874911869,0.78013207,3187.7,3186.0,0.7830517]
[1768874912177,0.78013207,3187.7,3185.9,40.8]
[1768874912178,1.60961277,3187.6,3185.9,40.8]
[1768874912371,0.77752397,3187.6,3185.9,40.8]
[1768874912762,0.93448397,3187.6,3185.9,40.8]
[1768874912956,0.77752397,3187.4,3185.9,40.8]
[1768874913160,0.77752397,3187.4,3185.3,4.194]
[1768874913565,0.77752397,3187.4,3185.4,40.8]
[1768874913872,0.93449397,3187.4,3185.4,40.8]